bitfinex-derivatives/quotes_BTCF0:USTF0_20251215
["timestamp","ask_amount","ask_price","bid_price","bid_amount"]
[1765759321154,0.24777,88264.0,88263.0,0.31121]
[1765759322472,0.006,88264.0,88263.0,0.31121]
[1765759322862,0.12345,88264.0,88263.0,0.31121]
[1765759323465,0.23771,88264.0,88263.0,0.24365]
[1765759323673,0.6604,88264.0,88263.0,0.001]
[1765759324860,0.29979,88256.0,88255.0,0.00016997]
[1765759325063,1.37091,88256.0,88255.0,0.00016997]
[1765759325457,1.37091,88256.0,88235.0,0.0113324]
[1765759325458,0.2430415,88242.0,88232.0,0.07057]
[1765759325663,0.23171,88233.0,88232.0,0.3061]
[1765759325968,0.25850095,88233.0,88232.0,0.31729669]
[1765759326279,0.25850095,88233.0,88232.0,0.3061]
[1765759326861,0.26050095,88233.0,88232.0,0.3061]
[1765759327569,0.27483365,88233.0,88232.0,0.23653]
[1765759328765,0.27483365,88233.0,88232.0,0.001]
[1765759329461,0.23171,88225.0,88224.0,0.30626997]
[1765759329763,0.25850095,88225.0,88224.0,0.30626997]
[1765759330673,0.25950095,88225.0,88224.0,0.30726997]
[1765759330873,0.26050095,88225.0,88224.0,0.23669997]
[1765759331873,0.26050095,88225.0,88224.0,0.30726997]
[1765759334870,0.02879095,88225.0,88224.0,0.30726997]
[1765759335573,0.26050095,88225.0,88224.0,0.30726997]
[1765759338081,0.02879095,88225.0,88224.0,0.30726997]
[1765759339676,0.26050095,88225.0,88224.0,0.30726997]
[1765759339872,0.26050095,88225.0,88224.0,0.23669997]
[1765759341567,0.23371,88225.0,88224.0,0.23669997]
[1765759342182,0.23371,88225.0,88224.0,0.30726997]
[1765759344481,0.62132286,88225.0,88224.0,0.00116997]
[1765759344679,0.62132286,88225.0,88224.0,0.23669997]
[1765759344985,0.59451,88225.0,88224.0,0.23669997]
[1765759345280,0.48025,88225.0,88224.0,0.23669997]
[1765759346468,0.3628,88225.0,88224.0,0.23669997]
[1765759347074,0.62888994,88225.0,88224.0,0.23669997]
[1765759348170,0.62888994,88225.0,88224.0,0.00116997]
[1765759348573,0.62888994,88225.0,88224.0,0.11899997]
[1765759350282,0.62888994,88225.0,88224.0,0.00116997]
[1765759357682,1.33928994,88225.0,88224.0,0.00116997]
[1765759359086,1.33928994,88225.0,88200.0,0.20633126]
[1765759359087,0.24046,88204.0,88203.0,0.23713877]
[1765759359285,0.26727994,88204.0,88203.0,8.877e-05]
[1765759360083,0.26735059,88204.0,88203.0,8.877e-05]
[1765759360390,0.26935059,88204.0,88203.0,0.00408877]
[1765759360587,0.2517986,88187.0,88186.0,0.31057]
[1765759360887,0.24046,88180.0,88179.0,0.31057]
[1765759361083,0.2673323,88180.0,88179.0,0.31057]
[1765759361388,0.24046,88180.0,88179.0,0.23705]
[1765759361587,0.24046,88173.0,88172.0,0.31057]
[1765759362485,0.19046,88173.0,88172.0,0.31057]
[1765759362787,0.19246,88173.0,88172.0,0.31057]
[1765759363484,0.19446,88173.0,88172.0,0.31057]
[1765759364291,0.19546,88173.0,88172.0,0.31057]
[1765759364487,0.005,88173.0,88172.0,0.31057]
[1765759365694,0.1272,88173.0,88172.0,0.31057]
[1765759368286,0.24546,88173.0,88172.0,0.23705]
[1765759368491,0.24046,88170.0,88169.0,0.59785]
[1765759369692,0.24346,88170.0,88169.0,0.59785]
[1765759369889,0.1252,88170.0,88169.0,0.59785]
[1765759370086,0.003,88170.0,88169.0,0.59785]
[1765759371085,0.1252,88170.0,88169.0,0.59785]
[1765759371598,0.24446,88170.0,88169.0,0.59785]
[1765759372996,0.004,88170.0,88169.0,0.59785]
[1765759374289,8.877e-05,88180.0,88179.0,0.2483896]
[1765759375491,0.00017008,88188.0,88187.0,0.2483886]
[1765759375897,0.14914208,88188.0,88187.0,0.2483886]
[1765759376195,0.26740208,88188.0,88187.0,0.2483886]
[1765759377690,0.27140208,88188.0,88187.0,0.23705]
[1765759378090,0.2634996,88179.0,88178.0,0.23763]
[1765759378803,0.25216,88179.0,88178.0,0.23763]
[1765759379090,0.3608,88182.0,88181.0,0.23763]
[1765759379292,0.38758679,88182.0,88181.0,0.23763]
[1765759380292,0.02678679,88182.0,88181.0,0.23763]
[1765759381097,0.27894679,88182.0,88181.0,0.23763]
[1765759381501,0.28094679,88182.0,88181.0,0.23763]
[1765759382002,0.02978679,88182.0,88181.0,0.23763]
[1765759382190,0.02778679,88182.0,88181.0,0.23763]
[1765759382389,0.03178679,88182.0,88181.0,0.23763]
[1765759382584,0.03378679,88182.0,88181.0,0.23763]
[1765759383991,0.28594679,88182.0,88181.0,0.23763]
[1765759384295,0.28494679,88182.0,88181.0,0.23763]
[1765759384491,0.28294679,88182.0,88181.0,0.23763]
[1765759384991,0.27994679,88182.0,88181.0,0.23763]
[1765759385291,0.03178679,88182.0,88181.0,0.23763]
[1765759385488,0.28394679,88182.0,88181.0,0.23763]
[1765759385689,0.2634999,88177.0,88176.0,0.31115]
[1765759385992,0.29028669,88177.0,88176.0,0.31115]
[1765759387693,0.28194679,88177.0,88176.0,0.31115]
[1765759388292,0.28394679,88177.0,88176.0,0.31115]
[1765759392106,0.03178679,88177.0,88176.0,0.31115]
[1765759393303,0.00017008,88188.0,88187.0,0.23763]
[1765759393511,0.00017008,88188.0,88187.0,0.2489686]
[1765759394706,0.00517008,88188.0,88187.0,0.2489686]
[1765759394907,0.06103634,88207.0,88206.0,0.2489661]
[1765759395109,0.08136773,88237.0,88224.0,0.0850038]
[1765759395301,0.25216,88235.0,88234.0,0.23763]
[1765759395502,0.25216,88235.0,88234.0,0.11895]
[1765759395699,0.12454,88226.0,88225.0,0.4369375]
[1765759395904,0.25233008,88234.0,88233.0,0.23763]
[1765759396814,0.25216,88226.0,88225.0,0.2489637]
[1765759397010,0.12454,88226.0,88225.0,0.2489637]
[1765759397404,0.00117008,88234.0,88233.0,0.23763]
[1765759397606,0.00117008,88234.0,88233.0,0.59843]
[1765759397914,0.36651063,88256.0,88233.0,0.59843]
[1765759397915,0.61296,88256.0,88255.0,0.23763]
[1765759398213,0.5522688,88256.0,88255.0,0.23763]
[1765759398415,0.5522688,88256.0,88255.0,0.11895]
[1765759399711,0.12454,88248.0,88247.0,0.23779996]
[1765759400618,0.25216,88248.0,88247.0,0.23779996]
[1765759401112,0.25416,88248.0,88247.0,0.23879996]
[1765759401324,0.25716,88248.0,88247.0,0.23979996]
[1765759402518,0.12954,88248.0,88247.0,0.23979996]
[1765759404516,0.25716,88248.0,88247.0,0.23979996]
[1765759405218,0.005,88248.0,88247.0,0.23979996]
[1765759405418,0.12470996,88264.0,88263.0,0.23763]
[1765759405614,0.00016996,88264.0,88263.0,0.23763]
[1765759406415,0.00016996,88264.0,88263.0,0.23863]
[1765759406619,0.00616996,88264.0,88263.0,0.23863]
[1765759406823,0.13070996,88264.0,88263.0,0.23863]
[1765759407121,0.12970996,88264.0,88263.0,0.23863]
[1765759407322,0.13070996,88264.0,88263.0,0.23963]
[1765759407506,0.12570996,88264.0,88263.0,0.23863]
[1765759407820,0.12670996,88264.0,88263.0,0.24163]
[1765759408221,0.12670996,88264.0,88263.0,0.24063]
[1765759409218,0.12570996,88264.0,88263.0,0.23963]
[1765759409420,0.32264996,88264.0,88263.0,0.003]
[1765759409718,0.68301996,88264.0,88263.0,0.003]
[1765759410120,0.68301996,88264.0,88263.0,0.2708588]
[1765759410121,0.61336996,88264.0,88263.0,0.2708588]
[1765759410618,0.25256996,88264.0,88263.0,0.2708588]
[1765759411523,0.00216996,88264.0,88263.0,0.2708588]
[1765759411725,0.00216996,88264.0,88263.0,0.6316588]
[1765759411924,0.00216996,88264.0,88263.0,0.2708588]
[1765759412821,0.00216996,88264.0,88263.0,0.6316588]
[1765759413017,0.61241,88283.0,88282.0,0.25653]
[1765759413224,0.63817408,88283.0,88272.0,0.0842976]
[1765759413414,0.63817408,88283.0,88264.0,0.3295]
[1765759413415,0.25161,88265.0,88264.0,0.3295]
[1765759413810,0.25161,88264.0,88252.0,0.0113301]
[1765759414018,0.32126,88264.0,88255.0,0.00016996]
[1765759414326,0.34702599,88264.0,88263.0,0.001]
[1765759415023,0.34802599,88264.0,88263.0,0.003]
[1765759415219,0.34802599,88264.0,88263.0,0.002]
[1765759416016,0.35202599,88264.0,88263.0,0.003]
[1765759416520,0.35102599,88264.0,88263.0,0.001]
[1765759416723,0.34902599,88264.0,88263.0,0.001]
[1765759416921,0.25161,88256.0,88255.0,0.00016996]
[1765759417123,0.27737599,88256.0,88255.0,0.00016996]
[1765759417808,0.25161,88246.0,88245.0,0.48813]
[1765759418017,0.25161,88246.0,88245.0,0.12733]
[1765759418224,0.25161,88243.0,88242.0,0.61733]
[1765759419621,0.25161,88243.0,88242.0,0.3608]
[1765759419622,0.2629414,88243.0,88242.0,0.3608]
[1765759419829,0.28841918,88243.0,88242.0,0.3608]
[1765759420028,0.28941918,88243.0,88242.0,0.3618]
[1765759420227,0.29041918,88243.0,88242.0,0.3628]
[1765759420430,0.29041918,88243.0,88242.0,0.49013]
[1765759420823,0.27908778,88243.0,88242.0,0.61933]
[1765759421527,0.28008778,88243.0,88242.0,0.61933]
[1765759422120,0.15422778,88243.0,88242.0,0.61933]
[1765759422526,0.2137304,88243.0,88242.0,0.61833]
[1765759422829,0.2147304,88243.0,88242.0,0.61933]
[1765759423124,0.02747778,88243.0,88242.0,0.61833]
[1765759423320,0.02847778,88243.0,88242.0,0.62033]
[1765759423516,0.06391867,88243.0,88242.0,0.62033]
[1765759423718,0.08939645,88243.0,88242.0,0.62033]
[1765759423917,0.08839645,88243.0,88242.0,0.61833]
[1765759424114,0.08939645,88243.0,88242.0,0.62033]
[1765759424319,0.02847778,88243.0,88242.0,0.62033]
[1765759424519,0.02647778,88243.0,88242.0,0.61933]
[1765759424719,0.02747778,88243.0,88242.0,0.62033]
[1765759425627,0.02647778,88243.0,88242.0,0.61833]
[1765759425830,0.02747778,88243.0,88242.0,0.62133]
[1765759428633,0.02647778,88243.0,88242.0,0.62033]
[1765759428835,0.02747778,88243.0,88242.0,0.62133]
[1765759433132,0.27908778,88243.0,88242.0,0.62133]
[1765759433645,0.34016064,88243.0,88242.0,0.62133]
[1765759433945,0.34016064,88243.0,88242.0,0.69751]
[1765759434444,0.27908778,88243.0,88242.0,0.69751]
[1765759434838,0.02747778,88243.0,88242.0,0.69751]
[1765759435439,0.15322778,88243.0,88242.0,0.69751]
[1765759435646,0.27908778,88243.0,88242.0,0.69751]
[1765759438345,0.27908778,88243.0,88242.0,0.26053]
[1765759440149,0.27908778,88243.0,88242.0,0.33457]
[1765759440742,0.27908778,88243.0,88242.0,0.004]
[1765759441448,0.3605419,88243.0,88242.0,0.004]
[1765759441841,0.27908778,88243.0,88242.0,0.004]
[1765759442038,0.3605419,88243.0,88242.0,0.004]
[1765759442234,0.27908778,88243.0,88242.0,0.004]
[1765759442434,0.3605419,88243.0,88242.0,0.004]
[1765759443244,0.27908778,88243.0,88242.0,0.004]
[1765759443449,0.3605419,88243.0,88242.0,0.004]
[1765759443842,0.3220324,88235.0,88234.0,0.00016996]
[1765759444041,0.24794,88232.0,88224.0,0.07618]
[1765759444242,0.27341778,88232.0,88224.0,0.07618]
[1765759445350,0.27541778,88232.0,88231.0,0.01]
[1765759446546,0.27541778,88232.0,88231.0,0.26294]
[1765759446754,0.27641778,88232.0,88231.0,0.27294]
[1765759447345,0.33750244,88232.0,88231.0,0.27294]
[1765759448350,0.27641778,88232.0,88231.0,0.27294]
[1765759451759,0.15065778,88232.0,88231.0,0.27294]
[1765759452162,0.27641778,88232.0,88231.0,0.27294]
[1765759454460,0.27641778,88232.0,88231.0,0.2842729]
[1765759454646,0.15065778,88232.0,88231.0,0.6450729]
[1765759454851,0.02847778,88232.0,88231.0,0.6450729]
[1765759455067,0.06108466,88248.0,88247.0,0.25294]
[1765759455361,0.18343462,88251.0,88250.0,0.2642705]
[1765759455756,0.30919462,88251.0,88250.0,0.25294]
[1765759456458,0.30919462,88251.0,88250.0,0.25394]
[1765759456653,0.31019462,88251.0,88250.0,0.25394]
[1765759457163,0.00116996,88251.0,88250.0,0.25394]
[1765759457961,0.00216996,88251.0,88250.0,0.25494]
[1765759458550,0.00116996,88251.0,88250.0,0.25394]
[1765759459064,0.00216996,88251.0,88250.0,0.25494]
[1765759459252,0.00216996,88251.0,88250.0,0.25694]
[1765759459566,0.00116996,88251.0,88250.0,0.25594]
[1765759459866,0.00216996,88251.0,88250.0,0.25794]
[1765759460456,0.00116996,88251.0,88250.0,0.25494]
[1765759460660,0.00216996,88251.0,88250.0,0.25794]
[1765759461369,0.0113288,88264.0,88263.0,0.25294]
[1765759461370,0.24794,88264.0,88263.0,0.25294]
[1765759461567,0.24794,88264.0,88263.0,0.32698]
[1765759462666,0.24894,88264.0,88263.0,0.32798]
[1765759462969,0.24894,88264.0,88263.0,0.33952758]
[1765759463162,0.24994,88264.0,88263.0,0.34052758]
[1765759465871,0.002,88264.0,88263.0,0.34052758]
[1765759466669,0.00016996,88272.0,88271.0,0.22844]
[1765759466872,0.3608,88289.0,88288.0,0.22844]
[1765759467073,0.50202928,88289.0,88288.0,0.22844]
[1765759467671,0.38632928,88289.0,88288.0,0.22844]
[1765759467873,0.38632928,88289.0,88288.0,0.22944]
[1765759467874,0.39132928,88289.0,88288.0,0.22944]
[1765759468073,0.03052928,88289.0,88288.0,0.22944]
[1765759468667,0.02552928,88289.0,88288.0,0.22844]
[1765759468976,0.02752928,88289.0,88288.0,0.23144]
[1765759469662,0.13871928,88289.0,88288.0,0.23144]
[1765759470262,0.25283928,88289.0,88288.0,0.23144]
[1765759470674,0.25283928,88289.0,88288.0,0.003]
[1765759471071,0.25283928,88289.0,88288.0,0.23998]
[1765759471967,0.25283928,88289.0,88288.0,0.30714]
[1765759472369,0.31357694,88289.0,88288.0,0.12436]
[1765759472567,0.25283928,88289.0,88288.0,0.003]
[1765759472962,0.25283928,88289.0,88288.0,0.30714]
[1765759473274,0.02752928,88289.0,88288.0,0.30714]
[1765759473673,0.06073721,88304.0,88300.0,0.0113241]
[1765759473867,0.06073721,88304.0,88303.0,0.23698]
[1765759474073,0.22531,88304.0,88303.0,0.23698]
[1765759474373,0.22531,88313.0,88312.0,0.30414]
[1765759474780,0.22531,88313.0,88312.0,0.23698]
[1765759475781,0.22531,88313.0,88312.0,0.23798]
[1765759476172,0.22531,88313.0,88312.0,0.30514]
[1765759476389,0.22631,88313.0,88312.0,0.30614]
[1765759477580,0.22631,88313.0,88312.0,0.23898]
[1765759478983,0.001,88313.0,88312.0,0.30614]
[1765759479277,0.22631,88313.0,88312.0,0.30614]
[1765759479579,0.28694238,88313.0,88312.0,0.30614]
[1765759480076,0.22631,88313.0,88312.0,0.30614]
[1765759480374,0.28694238,88313.0,88312.0,0.30614]
[1765759480578,0.22631,88313.0,88312.0,0.30614]
[1765759481277,0.28694238,88313.0,88312.0,0.30614]
[1765759481481,0.22631,88313.0,88312.0,0.30614]
[1765759484481,0.22631,88313.0,88312.0,0.002]
[1765759485181,0.28694238,88313.0,88312.0,0.12336]
[1765759485482,0.28694238,88313.0,88312.0,0.23898]
[1765759485685,0.31204358,88313.0,88312.0,0.23898]
[1765759486287,0.2514112,88313.0,88312.0,0.23898]
[1765759486674,0.31214115,88313.0,88312.0,0.12336]
[1765759486876,0.31214115,88313.0,88312.0,0.002]
[1765759487080,0.2514112,88313.0,88312.0,0.002]
[1765759489388,0.0261012,88313.0,88312.0,0.29914]
[1765759489592,0.1372912,88313.0,88312.0,0.29914]
[1765759489792,0.2514112,88313.0,88312.0,0.29914]
[1765759495292,0.2514112,88313.0,88312.0,0.23898]
[1765759495899,0.2514112,88313.0,88312.0,0.30614]
[1765759496997,0.2514112,88313.0,88312.0,0.23898]
[1765759498304,0.2514112,88313.0,88312.0,0.17779872]
[1765759498591,0.2514112,88313.0,88312.0,0.18912122]
[1765759500594,0.2514112,88313.0,88312.0,0.17779872]
[1765759500791,0.06586,88305.0,88304.0,0.36096986]
[1765759501099,0.06586,88305.0,88304.0,0.00016986]
[1765759501100,0.3319946,88305.0,88304.0,0.00016986]
[1765759501302,0.3319946,88305.0,88290.0,0.3614932]
[1765759501303,0.22971,88291.0,88290.0,0.3614932]
[1765759501500,0.0251012,88291.0,88290.0,0.22604]
[1765759501890,0.2548112,88291.0,88290.0,0.22604]
[1765759502086,0.17238092,88291.0,88286.0,0.3608]
[1765759502291,0.22971,88287.0,88286.0,0.58684]
[1765759502495,0.0251012,88287.0,88286.0,0.60968891]
[1765759503000,0.2548112,88287.0,88286.0,0.58684]
[1765759503902,0.2568112,88287.0,88286.0,0.58784]
[1765759505002,0.2568112,88287.0,88286.0,0.58884]
[1765759505201,0.2548112,88287.0,88286.0,0.58784]
[1765759505501,0.2568112,88287.0,88286.0,0.58784]
[1765759506002,0.33823092,88287.0,88286.0,0.11863]
[1765759506185,0.33923092,88287.0,88286.0,0.11863]
[1765759506387,0.2578112,88287.0,88286.0,0.001]
[1765759506991,0.22971,88281.0,88280.0,0.00016986]
[1765759507300,0.2548112,88281.0,88280.0,0.01149646]
[1765759507496,0.2548112,88281.0,88280.0,0.12912646]
[1765759507700,0.2548112,88281.0,88280.0,0.23753646]
[1765759508493,0.2558112,88281.0,88280.0,0.01149646]
[1765759509105,0.2548112,88281.0,88280.0,0.01149646]
[1765759509902,0.2558112,88281.0,88280.0,0.13012646]
[1765759510701,0.2568112,88281.0,88280.0,0.00116986]
[1765759510901,0.22971,88276.0,88275.0,0.3608]
[1765759511096,0.2548112,88276.0,88275.0,0.3608]
[1765759511296,0.2548112,88276.0,88275.0,0.58684]
[1765759511792,0.22971,88270.0,88269.0,0.22604]
[1765759511992,0.2548112,88270.0,88269.0,0.22604]
[1765759512603,0.2661391,88270.0,88269.0,0.22604]
[1765759512806,0.3297191,88270.0,88269.0,0.22604]
[1765759513197,0.3183912,88270.0,88269.0,0.22604]
[1765759513503,0.3193912,88270.0,88269.0,0.22704]
[1765759513999,0.2558112,88270.0,88269.0,0.22704]
[1765759514509,0.0271012,88270.0,88269.0,0.22704]
[1765759515097,0.0281012,88270.0,88269.0,0.22704]
[1765759515703,0.2558112,88270.0,88269.0,0.22604]
[1765759515910,0.2568112,88270.0,88269.0,0.22704]
[1765759516607,0.0251012,88270.0,88269.0,0.22604]
[1765759516797,0.0261012,88270.0,88269.0,0.22804]
[1765759517398,0.06091427,88286.0,88285.0,0.237366]
[1765759517593,0.06091427,88291.0,88289.0,0.2373655]
[1765759517798,0.06091427,88294.0,88293.0,0.22604]
[1765759518002,0.06091427,88298.0,88297.0,0.22604]
[1765759518409,0.06091427,88304.0,88303.0,0.22604]
[1765759518610,0.06091427,88304.0,88303.0,0.58684]
[1765759518810,0.06091427,88305.0,88304.0,0.2373636]
[1765759519108,0.00016986,88306.0,88305.0,0.22604]
[1765759520505,0.11499986,88306.0,88305.0,0.22604]
[1765759520710,0.11599986,88306.0,88305.0,0.22604]
[1765759521612,0.11799986,88306.0,88305.0,0.22704]
[1765759522309,0.00316986,88306.0,88305.0,0.22704]
[1765759525711,0.23287986,88306.0,88305.0,0.22704]
[1765759528825,0.11799986,88306.0,88305.0,0.22704]
[1765759529331,0.14266953,88306.0,88305.0,0.22704]
[1765759531533,0.25069953,88306.0,88305.0,0.22704]
[1765759531936,0.25069705,88306.0,88305.0,0.22704]
[1765759535735,0.25069705,88306.0,88305.0,0.001]
[1765759535940,0.25069705,88306.0,88305.0,0.23535]
[1765759540829,0.25069705,88306.0,88305.0,0.001]
[1765759541139,0.61149705,88306.0,88305.0,0.001]
[1765759542245,0.2244,88296.0,88295.0,0.59515]
[1765759542543,0.24906719,88296.0,88295.0,0.47717]
[1765759543344,0.24906719,88296.0,88295.0,0.59515]
[1765759543928,0.24906719,88296.0,88295.0,0.59715]
[1765759544129,0.25006719,88296.0,88295.0,0.59815]
[1765759544738,0.25006719,88296.0,88295.0,0.23735]
[1765759544932,0.24906719,88296.0,88295.0,0.23635]
[1765759545137,0.25206719,88296.0,88295.0,0.23535]
[1765759545338,0.25206719,88296.0,88295.0,0.001]
[1765759546945,0.2244,88290.0,88289.0,0.23451986]
[1765759547134,0.3101029,88290.0,88289.0,0.23451986]
[1765759547335,0.24906719,88290.0,88289.0,0.23451986]
[1765759547536,0.24906719,88290.0,88289.0,0.11653986]
[1765759548938,0.25206719,88290.0,88289.0,0.11753986]
[1765759550035,0.25406719,88290.0,88289.0,0.11753986]
[1765759550641,0.25406719,88290.0,88289.0,0.00116986]
[1765759551146,0.2244,88283.0,88282.0,0.3608]
[1765759551335,0.24906719,88283.0,88282.0,0.47717]
[1765759551536,0.3214071,88283.0,88282.0,0.59515]
[1765759553350,0.26039349,88283.0,88282.0,0.59515]
[1765759553841,0.26039349,88283.0,88282.0,0.59615]
[1765759554148,0.26239349,88283.0,88282.0,0.59715]
[1765759554342,0.26339349,88283.0,88282.0,0.59615]
[1765759554739,0.3130808,88283.0,88282.0,0.23535]
[1765759554944,0.3244071,88283.0,88282.0,0.23535]
[1765759555338,0.26339349,88283.0,88282.0,0.23535]
[1765759556545,0.21822,88275.0,88274.0,0.57359986]
[1765759556744,0.24288719,88275.0,88274.0,0.57359986]
[1765759558339,0.24588719,88275.0,88274.0,0.57459986]
[1765759559547,0.24388719,88275.0,88274.0,0.57359986]
[1765759559744,0.24688719,88275.0,88274.0,0.57459986]
[1765759560047,0.24588719,88275.0,88274.0,0.57459986]
[1765759560246,0.24688719,88275.0,88274.0,0.57459986]
[1765759561036,0.02866719,88275.0,88274.0,0.57459986]
[1765759561348,0.00016986,88283.0,88282.0,0.21263]
[1765759561539,0.00016986,88283.0,88282.0,0.57343]
[1765759563446,0.00116986,88283.0,88282.0,0.57643]
[1765759563855,0.00216986,88283.0,88282.0,0.57843]
[1765759564639,0.00116986,88283.0,88282.0,0.57543]
[1765759564845,0.22038986,88283.0,88282.0,0.57843]
[1765759565944,0.22038986,88283.0,88282.0,0.57643]
[1765759566254,0.11013986,88283.0,88282.0,0.57843]
[1765759566754,0.10913986,88283.0,88282.0,0.57743]
[1765759566958,0.10813986,88283.0,88282.0,0.57643]
[1765759568055,0.00016986,88283.0,88282.0,0.57643]
[1765759569754,0.00116986,88283.0,88282.0,0.57443]
[1765759569951,0.00216986,88283.0,88282.0,0.57643]
[1765759570757,0.22038986,88283.0,88282.0,0.57643]
[1765759571258,0.11013986,88283.0,88282.0,0.57643]
[1765759571650,0.00216986,88283.0,88282.0,0.57643]
[1765759571847,0.001,88283.0,88282.0,0.57643]
[1765759572048,0.06097261,88299.0,88298.0,0.27462]
[1765759572254,0.06097261,88307.0,88306.0,0.21263]
[1765759572454,0.06097261,88308.0,88307.0,0.2239532]
[1765759572756,0.06097261,88312.0,88311.0,0.21263]
[1765759572943,0.06097261,88314.0,88312.0,0.2859425]
[1765759573149,0.06097261,88316.0,88315.0,0.21263]
[1765759573457,0.02439663,88316.0,88315.0,0.21263]
[1765759573654,0.24261663,88316.0,88315.0,0.21263]
[1765759574448,0.06114247,88320.0,88312.0,0.06399]
[1765759574756,0.2295381,88347.0,88346.0,0.21263]
[1765759574952,0.2295381,88347.0,88346.0,0.10308]
[1765759575150,0.2295381,88347.0,88338.0,0.3721192]
[1765759575151,0.21822,88339.0,88338.0,0.57343]
[1765759575346,0.011318,88348.0,88338.0,0.3608]
[1765759575552,0.21822,88339.0,88338.0,0.57343]
[1765759576845,0.21768175,88339.0,88338.0,0.57343]
[1765759577051,0.21868175,88339.0,88338.0,0.57443]
[1765759577459,0.21868175,88339.0,88338.0,0.001]
[1765759577755,0.57948175,88339.0,88338.0,0.001]
[1765759578151,0.57948175,88339.0,88338.0,0.10408]
[1765759578348,0.57948175,88339.0,88338.0,0.21363]
[1765759578551,0.001,88339.0,88338.0,0.57443]
[1765759582161,0.00016986,88352.0,88351.0,0.21263]
[1765759583455,0.00016986,88352.0,88351.0,0.2242174]
[1765759583654,0.00316986,88352.0,88351.0,0.2242174]
[1765759583856,0.00616986,88352.0,88351.0,0.2252174]
[1765759585758,0.22438986,88352.0,88351.0,0.21363]
[1765759585961,0.00616986,88352.0,88351.0,0.21363]
[1765759586162,0.00616986,88352.0,88351.0,0.22479619]
[1765759586364,0.06737,88392.0,88372.0,0.22715]
[1765759586365,0.9294648,88373.0,88372.0,0.22715]
[1765759586565,0.95333353,88373.0,88372.0,0.22715]
[1765759587071,0.22467,88361.0,88360.0,0.22715]
[1765759587266,0.24853873,88361.0,88360.0,0.22715]
[1765759587664,0.02386873,88361.0,88360.0,0.28314]
[1765759587866,0.06779,88368.0,88360.0,0.28314]
[1765759587867,0.22435,88367.0,88366.0,0.21916]
[1765759588067,0.02386643,88367.0,88366.0,0.2304756]
[1765759589369,0.13221643,88367.0,88366.0,0.2304756]
[1765759589670,0.13521643,88367.0,88366.0,0.2304756]
[1765759589865,0.13921643,88367.0,88366.0,0.2314756]
[1765759590272,0.13921643,88367.0,88366.0,0.22016]
[1765759590273,0.03086643,88367.0,88366.0,0.22016]
[1765759591366,0.13921643,88367.0,88366.0,0.22016]
[1765759592074,0.25521643,88367.0,88366.0,0.22016]
[1765759594164,0.13921643,88367.0,88366.0,0.2314756]
[1765759594878,0.11535,88367.0,88366.0,0.2314756]
[1765759595066,0.007,88367.0,88366.0,0.2314756]
[1765759595374,0.11535,88367.0,88366.0,0.2314756]
[1765759595675,0.23135,88367.0,88366.0,0.2314756]
[1765759595868,0.23135,88367.0,88366.0,0.22016]
[1765759599266,0.11535,88367.0,88366.0,0.22016]
[1765759600276,0.23135,88367.0,88366.0,0.22016]
[1765759604575,0.29210414,88367.0,88366.0,0.22016]
[1765759605080,0.06775414,88367.0,88366.0,0.22016]
[1765759605969,0.007,88367.0,88366.0,0.22016]
[1765759608781,0.23135,88367.0,88366.0,0.22016]
[1765759609073,0.007,88367.0,88366.0,0.22016]
[1765759609477,0.003,88367.0,88366.0,0.22016]
[1765759609780,0.004,88367.0,88366.0,0.22016]
[1765759612175,0.22835,88367.0,88366.0,0.22016]
[1765759614477,0.30964823,88367.0,88366.0,0.11142]
[1765759614677,0.58915,88367.0,88366.0,0.001]
[1765759615276,0.58915,88367.0,88366.0,0.11142]
[1765759615477,0.58915,88367.0,88366.0,0.22016]
[1765759615781,0.58915,88367.0,88366.0,0.11142]
[1765759616079,0.58915,88367.0,88366.0,0.22016]
[1765759616385,0.22835,88367.0,88366.0,0.22016]
[1765759616879,0.22835,88367.0,88366.0,0.001]
[1765759617280,0.58915,88367.0,88366.0,0.001]
[1765759617672,0.58915,88367.0,88352.0,0.22071974]
[1765759617673,0.22004,88353.0,88352.0,0.22071974]
[1765759618483,0.30116269,88353.0,88352.0,0.22071974]
[1765759618984,0.30116269,88353.0,88352.0,0.22271974]
[1765759620482,0.30316269,88353.0,88352.0,0.22271974]
[1765759621184,0.30116269,88353.0,88352.0,0.22171974]
[1765759621388,0.22204,88353.0,88352.0,0.22171974]
[1765759621975,0.28282872,88353.0,88352.0,0.00116974]
[1765759622175,0.22204,88353.0,88352.0,0.00116974]
[1765759623377,0.0113185,88344.0,88340.0,0.35592744]
[1765759623577,0.22004,88341.0,88340.0,0.22055]
[1765759624374,0.2313606,88327.0,88326.0,0.22055]
[1765759624580,0.0681,88333.0,88320.0,0.10978]
[1765759624581,0.2313614,88321.0,88320.0,0.10978]
[1765759624873,0.5921614,88321.0,88320.0,0.10978]
[1765759625080,0.28814,88319.0,88318.0,0.00016974]
[1765759625679,0.31202275,88319.0,88318.0,0.00016974]
[1765759626992,0.22004,88302.0,88301.0,0.2318739]
[1765759628190,0.22004,88302.0,88301.0,0.22055]
[1765759628494,0.22104,88302.0,88301.0,0.23355]
[1765759628688,0.22204,88302.0,88301.0,0.25499037]
[1765759630783,0.22204,88302.0,88301.0,0.24355]
[1765759630982,0.22204,88302.0,88301.0,0.023]
[1765759632192,0.22204,88302.0,88301.0,0.24355]
[1765759632389,0.22204,88302.0,88301.0,0.023]
[1765759632690,0.22004,88294.0,88293.0,0.00016984]
[1765759633087,0.22004,88294.0,88293.0,0.22071984]
[1765759633282,0.11055,88302.0,88301.0,0.10978]
[1765759633479,0.22204,88302.0,88301.0,0.22055]
[1765759633681,0.22204,88302.0,88301.0,0.58135]
[1765759633886,0.22004,88302.0,88301.0,0.58135]
[1765759634695,0.22004,88302.0,88301.0,0.58235]
[1765759635281,0.22104,88302.0,88301.0,0.5936739]
[1765759636997,0.22204,88302.0,88301.0,0.5936739]
[1765759637196,0.22504,88302.0,88301.0,0.5946739]
[1765759637491,0.22304,88302.0,88301.0,0.5946739]
[1765759637701,0.22504,88302.0,88301.0,0.5946739]
[1765759638099,0.22304,88302.0,88301.0,0.5936739]
[1765759638397,0.22504,88302.0,88301.0,0.5946739]
[1765759640087,0.005,88302.0,88301.0,0.5946739]